Cogmind - Beta 10.1 @@@ ROGUE MODE // 2020.09.29 @ 12:12:01 Player: Robotson Result: Destroyed by D-53 Grenadier with Mini Grenade Launcher Performance ------------- Evolutions (0) 0 Regions Visited (2) 400 Robots Destroyed (18) 90 Value Destroyed (233) 233 Prototype IDs (2) 40 Alien Tech Used (0) 0 Bonus (0) 0 TOTAL SCORE: 763 Bonus ------- None Cogmind --------- Core Integrity 0/250 Matter 300/300 Energy 68/100 System Corruption 0% Temperature Cool (2) Movement Flying (40) Location -10/Mines Parts ------- > --- POWER (1) -------- (None) > --- PROPULSION (2) --- Flight Unit > --- UTILITY (2) ------ Weight Redist. System Weapon Shielding > --- WEAPON (2) ------- Mining Claw > --- INVENTORY (4) ---- Weapon Shielding Recalibrator Welding Torch Peak State ------------ > --- POWER ------------ Light Ion Engine > --- PROPULSION ------- Aluminum Leg Wheel > --- UTILITY ---------- Small Storage Unit Hacking Suite > --- WEAPON ----------- Datajack Mining Claw > --- INVENTORY -------- Weight Redist. System Weapon Shielding Weapon Shielding Recalibrator Beam Cannon Mining Laser [Rating: 10] Favorites ----------- Power Ion Engine Engine Ion Engine Propulsion Aluminum Leg Leg Aluminum Leg Wheel Wheel Flight Unit Flight Unit Utility Small Storage Unit Device Weight Redist. System Storage Small Storage Unit Hackware Hacking Suite Protection Weapon Shielding Weapon Mining Claw Energy Cannon Beam Cannon Launcher Grenade Launcher Special Weapon Mining Laser Slashing Weapon Mining Claw Special Melee Weapon Datajack Build | -11 -10 -10 ------- Run | Scr Mat Min Slots Evolved . | . . . Power . | . . . Propulsion . | . . . Utility . | . . . Weapon . | . . . Parts Attached 23 | 4 9 10 Power 3 | 1 . 2 Engine 3 | 1 . 2 Core . | . . . Reactor . | . . . Propulsion 6 | 2 . 4 Treads . | . . . Leg 2 | 2 . . Wheel 1 | . . 1 Hover . | . . . Flight 3 | . . 3 Utility 7 | 1 4 2 Device 2 | . 1 1 Storage 2 | 1 1 . Processor . | . . . Hackware 1 | . 1 . Protection 2 | . 1 1 Artifact . | . . . Weapon 7 | . 5 2 Energy Gun . | . . . Energy Cannon 2 | . 1 1 Ballistic Gun . | . . . Ballistic Cannon . | . . . Launcher 1 | . 1 . Special Weapon 1 | . . 1 Impact Weapon . | . . . Slashing Weapon 1 | . 1 . Piercing Weapon . | . . . Special Melee Weapon 2 | . 2 . Unidentified Prototypes . | . . . Parts Lost 7 | . 2 5 Power 1 | . . 1 Propulsion 3 | . 1 2 Utility . | . . . Weapon 3 | . 1 2 Highest Loss Streak 4 | . 2 4 Average Slot Usage (%) 88 | . 84 92 Engine 13 | . 14 13 Leg 14 | . 20 7 Wheel 1 | . . 2 Flight 6 | . . 13 Device 4 | . 1 7 Storage 10 | . 14 7 Hackware 4 | . 1 7 Protection 6 | . 5 7 Energy Cannon 4 | . 3 6 Launcher 3 | . 6 . Slashing Weapon 13 | . 12 14 Special Melee Weapon 4 | . 3 5 Naked Turns . | . . . Heaviest Build 15 | 9 15 12 Greatest Support 20 | 20 20 14 Greatest Overweight (x) 1 | . 1 1 Average Overweight (x) . | . . . Largest Inventory Capacity 6 | 6 6 6 Average Capacity 5 | 5 5 4 Most Carried 6 | 4 6 6 Average Carried 3 | . 3 4 Final Capacity 6 | 6 6 4 Final Carried 6 | . 6 3 Class Distribution -------------------- 75% | Mutant 24% | Scavenger-Mutant Dominant Class ---------------- Mutant | -10/Materials Scavenger-Mutant | -10/Mines Resources | -11 -10 -10 ----------- Run | Scr Mat Min Matter Collected 484 | 240 159 85 Remotely . | . . . Salvage Created 295 | . 178 117 Parts 27 | . 15 12 Haulers Intercepted 1 | . 1 . Recyclers Shooed . | . . . Parts Field Recycled . | . . . Retrieved Matter . | . . . Parts Self-Destructed . | . . . Prevented . | . . . Kills | -11 -10 -10 ------- Run | Scr Mat Min Combat Hostiles Destroyed 11 | . 6 5 Melee 2 | . . 2 Cannons 5 | . 2 3 AOE 4 | . 4 . Classes Destroyed 8 | . 7 1 Worker 2 | . 1 1 Builder 1 | . . 1 Tunneler 1 | . 1 . Hauler 1 | . 1 . Recycler 1 | . 1 . Operator 1 | . 1 . Swarmer 8 | . 3 5 Grunt 3 | . 3 . Best Kill Streak 8 | . 8 2 Combat Bots Only 4 | . 4 2 Max Kills in Single Turn 2 | . 2 1 Gunslinging . | . . . Exploded 2 | . 2 . Melee 1 | . . 1 Uniques/NPCs Destroyed . | . . . Combat | -11 -10 -10 -------- Run | Scr Mat Min Damage Taken 805 | . 390 415 Core 256 | . 117 139 Absorbed by Shields . | . . . Core Remaining (%) 100 | 100 . . Volleys Fired 35 | . 20 15 Largest 1 | . 1 1 Hottest 60 | . 60 60 Shots Fired 35 | . 20 15 Gun . | . . . Cannon 24 | . 9 15 Launcher 11 | . 11 . Special . | . . . Kinetic . | . . . Thermal 24 | . 9 15 Explosive 11 | . 11 . Electromagnetic . | . . . Robot Hit Streak 10 | . 10 3 Robot Miss Streak 2 | . 1 2 Penetration Max . | . . . Secondary Targets . | . . . Shots Hit Robots 41 | . 26 15 Core Hits 26 | . 18 8 Critical Hits . | . . . Critical Kills . | . . . Critical Parts Destroyed . | . . . Melee Attacks 25 | . 12 13 Impact . | . . . Slashing 20 | . 8 12 Piercing . | . . . Sneak Attacks 11 | . 8 3 Combat Hostiles . | . . . Follow-up Attacks . | . . . Damage Inflicted 1305 | . 903 402 Guns . | . . . Cannons 261 | . 121 140 Explosions 451 | . 451 . Melee 593 | . 331 262 Ramming . | . . . Kinetic . | . . . Thermal 261 | . 121 140 Explosive 451 | . 451 . Electromagnetic . | . . . Impact . | . . . Slashing 593 | . 331 262 Piercing . | . . . Highest Corruption . | . . . Average Corruption . | . . . Corruption Purged . | . . . Overload Shots . | . . . Overflow Damage 143 | . 97 46 Projectiles 29 | . 17 12 Explosions 16 | . 16 . Melee 98 | . 64 34 Knockbacks . | . . . Impact . | . . . Kinetic . | . . . Secondary . | . . . Self-Inflicted Damage 59 | . 59 . Shots 5 | . 5 . Rammed . | . . . Targets Rammed . | . . . Kicked . | . . . Crushed . | . . . Highest Temperature 243 | . 243 90 Average Temperature 65 | . 110 31 Received Heat Transfer 189 | . 177 12 Siege Activations . | . . . Robots Corrupted . | . . . Combat Hostiles . | . . . Parts Fried . | . . . Impact Corruptions . | . . . Robots Melted . | . . . Combat Hostiles . | . . . Parts Melted . | . . . Heat Transferred 555 | . 259 296 Parts Sabotaged . | . . . Parts Stolen . | . . . Parts Stripped . | . . . Power Chain Reactions . | . . . Missiles Intercepted . | . . . Alert | -11 -10 -10 ------- Run | Scr Mat Min Peak Influence 179 | . 178 179 Initial 69 | . . 69 Average 107 | . 123 104 Maximum Alert Level . | . . . Low Security (%) 100 | 100 100 100 Level 1 . | . . . Level 2 . | . . . Level 3 . | . . . Level 4 . | . . . Level 5 . | . . . High Security . | . . . Max Security . | . . . Squads Dispatched 1 | . 1 . Investigation 1 | . 1 . Extermination . | . . . Reinforcement . | . . . Assault . | . . . Garrison . | . . . Intercept . | . . . Construction Impeded . | . . . Haulers Reinforced . | . . . Stealth | -11 -10 -10 --------- Run | Scr Mat Min Distress Signals 1 | . 1 . Communications Jammed . | . . . Distress Signals . | . . . Times Spotted 21 | . 10 11 Peak Tracking Total 4 | . 4 3 Tactical Retreats 4 | . . 4 Traps | -11 -10 -10 ------- Run | Scr Mat Min Traps Triggered . | . . . Indirectly . | . . . Trap Hack Attempts . | . . . Triggered . | . . . Disarmed . | . . . Reprogrammed . | . . . Reused . | . . . Traps Extracted . | . . . Installed . | . . . Triggered . | . . . Machines | -11 -10 -10 ---------- Run | Scr Mat Min Machines Disabled 3 | . 3 . Max in Single Turn 3 | . 3 . Machines Sabotaged . | . . . Garrisons Compromised . | . . . Overloaded Fab Kills . | . . . Fab Network Shutdowns . | . . . Hacking | -11 -10 -10 --------- Run | Scr Mat Min Machines Accessed 3 | . 3 . Terminals 2 | . 2 . Fabricators . | . . . Repair Stations . | . . . Recycling Units 1 | . 1 . Scanalyzers . | . . . Garrison Access . | . . . Total Hacks 9 | . 9 . Successful 6 | . 6 . Failed 3 | . 3 . Catastrophic . | . . . Database Lockouts . | . . . Manual . | . . . Terminals 4 | . 4 . Fabricators . | . . . Repair Stations . | . . . Recycling Units 5 | . 5 . Scanalyzers . | . . . Garrison Access . | . . . Terminal Hacks 2 | . 2 . Prototype ID Bank 1 | . 1 . Locate Traps 1 | . 1 . Fabricator Hacks . | . . . Repair Station Hacks . | . . . Recycling Unit Hacks 4 | . 4 . Recycle Component 1 | . 1 . Process 1 | . 1 . Report Inventory 1 | . 1 . Retrieve Matter 1 | . 1 . Scanalyzer . | . . . Garrison Access Hacks . | . . . Unauthorized Hacks . | . . . Terminals . | . . . Fabricators . | . . . Repair Stations . | . . . Recycling Units . | . . . Scanalyzers . | . . . Garrison Access . | . . . Data Cores Recovered . | . . . Used . | . . . Hacking Detections 2 | . 2 . Full Trace Events 1 | . 1 . Feedback Events . | . . . Feedback Blocked . | . . . Robot Schematics Acquired . | . . . Robots Built . | . . . Matter . | . . . Time . | . . . Total Robot Build Rating . | . . . Part Schematics Acquired . | . . . Parts Built . | . . . Matter . | . . . Time . | . . . Total Part Build Rating . | . . . Parts Repaired . | . . . Time . | . . . Parts Recycled 1 | . 1 . Recycled Matter 49 | . 49 . Retrieved Matter 49 | . 49 . Retrieved Components . | . . . Parts Scanalyzed . | . . . Part Schematics Acquired . | . . . Parts Damaged . | . . . Bothacking | -11 -10 -10 ------------ Run | Scr Mat Min Used RIF Installer . | . . . Robots Hacked 2 | . 2 . Non-combat 2 | . 2 . Combat . | . . . Robot Hacks Applied 3 | . 3 . parse_system 1 | . 1 . no_distress 1 | . 1 . find_recycling 1 | . 1 . Relay Couplers Released . | . . . Robots Rewired . | . . . Allies Hacked . | . . . Hacks Repelled . | . . . Allies | -11 -10 -10 -------- Run | Scr Mat Min Total Allies . | . . . Largest Group . | . . . Highest-Rated Group . | . . . Highest-Rated Ally . | . . . Total Orders . | . . . Ally Attacks . | . . . Total Damage . | . . . Kills . | . . . Allies Corrupted . | . . . Allies Melted . | . . . Intel | -11 -10 -10 ------- Run | Scr Mat Min Robot Analysis Total . | . . . Derelict Logs Recovered 2 | . . 2 Drone Launches . | . . . Drone Recoveries . | . . . Exploration | -11 -10 -10 ------------- Run | Scr Mat Min Turns Passed 640 | 39 327 274 Spaces Moved 518 | 36 172 310 Core 17 | 16 . 1 Treads . | . . . Legs 244 | 20 172 52 Wheels 30 | . . 30 Hover . | . . . Flight 227 | . . 227 Fastest Speed 37 | 50 120 37 Average Speed 86 | 88 129 61 Slowest Speed 150 | 120 150 150 Overloaded Moves . | . . . Propulsion Burnouts . | . . . Robots Hopped . | . . . Cave-ins Triggered . | . . . Exploration Rate (%) 30 | 4 28 59 Regions Visited 2 Branch Regions 1 Pre-discovered Areas . | . . . Known Exits Taken . | . . . Unknown Exits Taken 2 | 1 1 . Scrap Searched 3 | . . 3 Spaces Dug . | . . . Terrain Destroyed 49 | . 49 . Melee . | . . . Projectile . | . . . AOE 49 | . 49 . Terrain Rammed . | . . . Walls Destroyed . | . . . Machines Disabled . | . . . Actions | -11 -10 -10 --------- Run | Scr Mat Min Total 640 | 43 239 358 Wait 4 | . 4 . Move 516 | 35 171 310 Hop . | . . . Pick Up 24 | 4 17 3 Fast Attach 2 | . 1 1 Attach 19 | 4 8 7 Detach . | . . . Swap 2 | . . 2 Drop 13 | . 6 7 Fire 35 | . 20 15 Melee 25 | . 12 13 Ram . | . . . Kick . | . . . Crush . | . . . Escape Stasis . | . . . Rewire . | . . . Trap . | . . . Miscellaneous . | . . . Route ------- -11/Scrapyard -10/Materials -10/Mines (discovered 1 exit: *Mat) History --------- Turn | Location | Event 4 | -11/Scrapyard | Discovered new exit (range 16) 40 | -11/Scrapyard | Entered Materials 134 | -10/Materials | Discovered new exit (range 9) 341 | -10/Materials | Build established: Mutant 367 | -10/Materials | Entered Mines 423 | -10/Mines | Identified exit to Materials 464 | -10/Mines | Learned 2 Materials zone layouts 476 | -10/Mines | Core integrity fell below 50% 627 | -10/Mines | Assembled infested the area 632 | -10/Mines | Core integrity fell below 20% 641 | -10/Mines | Destroyed by D-53 Grenadier with Mini Grenade Launcher Last Messages --------------- 00617_ S-10 Pest destroyed. 00627_ ALERT: Infestation in the mines, dispatching Demolisher response squad. 00627_ C-30 ARC bursts open, deploying its payload. 00627_ D-53 Grenadier unfolds itself. 00627_ Flight Unit destroyed. 00627_ Plasma Injector explodes. 00627_ D-53 Grenadier destroyed. 00629_ Beam Cannon destroyed. 00631_ Lgt. Ion Engine destroyed. 00633_ Flight Unit destroyed. 00636_ Searching scrap... 00636_ Found Mining Laser. 00636_ Found 24 Matter. 00639_ Searching scrap... 00639_ Found 41 Matter. 00639_ Found Sml. Matter Pod. 00639_ Found Aluminum Leg. 00639_ Found Hover Unit. 00639_ Found 20 Matter. Map ----- +----------------------------------------------------+ | ??????# ########????????# ##???????### #?## | | ?###### #???????????????# ##??????# ####??## | | ## # ########????????# #??????# ###??????# | | # #?????????# ##?????# #????????# | | # ##### #??????????# ####### #????????# | | # ##???# #######???## % #????????# | | ## #####????#== ##### #????????# | | ?####????????# ! ## * #######????????# | | ?????????????##/### #??????????????? | | ??????????????# ### ##??????????????? | | ??????????????# ## ##???????????????? | | ??????????????# ## ##????????????????? | | ????????? #### ###?????????????????? | | ????????# ##??# ##???????????????????? | | ????????# #????## ##???????#####????????? | | ????????# #??????####????????# ?????????? | | ????????# #??????????????????# #??????????? | | ???????? #????????########?## #??????????? | | ???????? ##????????# ## # #####??????? | | ????????? ##????####### #??????? | | ????????? ###??????# % # ###%#??????? | | ????????????????????# | #?#*#??????? | | ????????????????????# #### #?# #??????? | | ????????????????????# #### ##?# ######## | | ?????????????????#### ## #?# [%* | | ?????????????????# @# ###?########## | | ?????????????????# ## =%!d# ] #???????????? | | ????????????????? ??# =% # !%! #???????????? | | ??????????????? ???# ## % ##???????????? | | ??????????????# ????# ## "< ####????????????? | | ??????????????#?????## ## ##???????????????? | | ?????????????????????###### #????????????????? | | ??????????????????????????## ##????????????????? | | ???????????????????????????#####?????????????????? | | ?????????????????????????????????????????????????? | | ?????????????????????????????????????????????????? | | ?????????????????????????????????????????????????? | | ?????????????????????????????????????????????????? | | ?????????????????????????????????????????????????? | | ?????????????????????????????????????????????????? | | ?????????????????????????????????????????????????? | | ?????????????????????????????????????????????????? | | ?????????????????????????????????????????????????? | | ?????????????????????????????????????????????????? | | ?????????????????????????????????????????????????? | | ?????????????????????????????????????????????????? | | ?????????????????????????????????????????????????? | | ?????????????????????????????????????????????????? | | ?????????????????????????????????????????????????? | | ?????????????????????????????????????????????????? | +----------------------------------------------------+ Best States ------------- Heat Dissipation 25 Energy Generation 10 Energy Capacity 250 Matter Stores 300 Matter Capacity 300 Sight Range 16 Terrain Scan Density 10 Additional Mass Support 6 Weapon Shielding 33 Evasion (%) 62 Offensive Hacking 10 Item Schematics ----------------- None Robot Schematics ------------------ None Fabricated ------------ Nothing Alien Tech Used ----------------- None Achievements -------------- None Challenges ------------ None Game ------ Seed CompositeChargeLoader Manual? 0 Play Time 00:31:55 Cumulative 4.3 hours Start 2020.09.29 @ 11:33:16 End 2020.09.29 @ 12:12:01 Sessions 1 Manual Loads 0 Difficulty Rogue Special Mode None Game No. 3 Rogue 3 Adventurer 0 Explorer 0 Win Type - Total 0 Types 0/0/0/0/0/0/0/0/0 Lore% 1 Gallery% 7 Achievement% 8 Wizard Run 0 Options --------- ASCII 1 Keyboard 0 Movement Mouse Keybinds 0 Fullscreen 1 Font 18/SmallcapsGlow Map View 76x50 Tactical HUD 1 Map Filters NONE Filters NONE Steam 1 RUN: e30afff2-1c2c-485a-af0a-9a1ea3bac8b3